[Event "22nd Indian Women chT 2025"]
[Site "Gujarat"]
[Date "2025.03.05"]
[Round "1.1"]
[White "Padmini, Rout"]
[Black "Mudaliar Nandini"]
[Result "1-0"]
[Annotator "TA"]
[ECO "A30"]
[WhiteElo "2356"]
[BlackElo "1681"]
[PlyCount "84"]
[EventDate "2025.03.03"]
[EventCountry "IND"]
[SourceTitle "playchess.com"]
[Source "ChessBase"]
[SourceQuality "1"]
[TimeControl "5400+30"]

{[%evp 9,84,-26,-5,-30,11,7,6,9,30,-66,-47,-60,-39,-65,-32,-26,-26,-35,-23,-24,-18,-18,0,0,210,193,202,195,207,208,206,206,211,182,216,216,269,285,278,275,290,283,308,293,300,306,308,295,287,305,400,368,798,623,1208,1200,1208,1198,1206,1192,1176,1120,1235,1230,1557,1522,1885,1850,29987,869,29988,29989,29989,29990,29990,29990,29991]} 1. Nf3 {[%emt 0:00:09]} d5 {[%emt 0:00:52]} 2. g3 {[%emt 0:00:19]} Nf6 {[%emt 0:00:17]} 3. Bg2 {[%emt 0:00:08]} c5 {[%emt 0:01:23]} 4. O-O {[%emt 0:00:11]} Nc6 {[%emt 0:00:05]} 5. c4 {[%emt 0:00:14]} d4 {[%emt 0:01:08]} 6. e3 {[%emt 0:00:07] A30: Symmetrical English: Double Fianchetto and Hedgehog.} Bg4 {[%emt 0:00:39]} 7. d3 {[%emt 0:04:14]} e6 {[%emt 0:01:12]} 8. h3 {[%emt 0:02:26] The position is equal.} Bh5 {[%emt 0:02:28]} 9. e4 {[%emt 0:02:09]} (9. g4 $11 Bg6 10. Ne1) 9... Be7 {[%emt 0:01:36]} 10. Nbd2 {[%emt 0:04:14][%cal Bb1d2,Bd2f3,Bf3h4,Bh4g6][%mdl 32]} O-O {[%emt 0:04:09]} 11. a3 {[%emt 0:01:26]} a5 $146 {[%emt 0:05:27]} ({Predecessor:} 11... Nd7 12. Qc2 f5 13. Nh2 f4 14. g4 Bg6 15. Ndf3 e5 16. Bd2 h5 17. Rab1 hxg4 18. Nxg4 {0-1 Zemkova,K (1728)-Kharmunova,N (2012) Dia de la Mujer Blitz 2022 (6)}) 12. g4 {[%emt 0:08:49][%cal Bg3g4,Bg4g5,Bg5g6][%mdl 32]} Bg6 {[%emt 0:00:15]} 13. Nh4 {[%emt 0:00:11]} e5 {[%emt 0:00:48]} 14. Nf5 {[%emt 0:00:33]} Nd7 {[%emt 0:04:15]} 15. Nf3 {[%emt 0:03:55]} h5 {[%emt 0:03:50]} 16. g5 {[%emt 0:03:52]} f6 $2 {[%emt 0:02:35] Black is on the road to losing.} (16... a4 $11) 17. N3h4 $18 {[%emt 0:03:04]} Qe8 {[%emt 0:00:13]} 18. Nxg6 {[%emt 0:00:38]} Qxg6 {[%emt 0:00:06] [#]} 19. Nh4 $1 {[%emt 0:00:35]} Qh7 {[%emt 0:07:43]} 20. g6 {[%emt 0:00:39]} Qh8 {[%emt 0:00:04] Black is weak on the light squares} 21. Bf3 {[%emt 0:02:26]} Rfb8 {[%emt 0:07:10]} 22. Bxh5 {[%emt 0:00:29]} Kf8 {[%emt 0:00:22][%cal Bg8f8,Bf8e8,Be8f7][%mdl 32]} 23. Nf5 {[%emt 0:01:21][%cal Oc1h6] [#]} Ke8 {[%emt 0:01:02]} 24. Bg4 {[%emt 0:01:03]} Nf8 {[%emt 0:01:04]} 25. h4 {[%emt 0:07:25]} Nxg6 {[%emt 0:04:17]} 26. Bh5 {[%emt 0:00:07]} ({Less strong is} 26. h5 Nf8 27. Kg2 Kd8 $16) 26... Qh7 {[%emt 0:00:06]} 27. Qg4 {[%emt 0:00:09]} Kf7 {[%emt 0:00:05]} 28. Ng3 {[%emt 0:06:04] Threatens to win with f4.} Rh8 {[%emt 0:00:39]} 29. f4 {[%emt 0:01:23]} exf4 {[%emt 0:02:37]} 30. Bxf4 {[%emt 0:00:14]} Bd8 $2 {[%emt 0:02:02]} (30... Kf8 31. Bxg6 (31. Qxg6 Qxg6 32. Bxg6 Rxh4 $18) 31... Qxh4 32. Qxh4 Rxh4) 31. Bd6 {[%emt 0:02:50]} Be7 {[%emt 0:00:47][%cal Bd8e7,Be7d6,Bd6e5][%mdl 32]} 32. e5 {[%emt 0:01:12]} Bxd6 {[%emt 0:00:12]} 33. Bxg6+ {[%emt 0:00:36]} Qxg6 {[%emt 0:00:28]} 34. e6+ {[%emt 0:01:12]} Kg8 {[%emt 0:05:22]} 35. Qxg6 {[%emt 0:02:17]} Ne5 {[%emt 0:02:37] Dodges Qf7+} 36. Qe4 {[%emt 0:00:15]} Nc6 {[%emt 0:03:15]} 37. Nf5 {[%emt 0:00:42]} Be5 {[%emt 0:01:17]} 38. e7 {[%emt 0:00:35] White threatens Qd5+ and mate.} Re8 {[%emt 0:02:55]} 39. Qd5+ {[%emt 0:02:06]} Kh7 {[%emt 0:00:10]} 40. Qf7 {[%emt 0:00:03][%csl Gf5][%cal Rf7g7] White mates.} Rxe7 {[%emt 0:00:49]} 41. Nxe7 {[%emt 0:00:19]} Nxe7 {[%emt 0:02:31]} 42. Qxe7 {[%emt 0:00:06]} b6 {[%emt 0:01:00] Weighted Error Value: White=0.12 (very precise) /Black=1.05  Loses game:     	---       	Black=1      Mistake:       	White=1     	Black=1      Inaccurate:     	White=1     	Black=4      OK:         	White=12    	Black=7      Best:        	White=2     	Black=2      Strong:       	White=1     	---} 1-0

[Event "22nd Indian Women chT 2025"]
[Site "Gujarat"]
[Date "2025.03.05"]
[Round "1.2"]
[White "Hanya Shah"]
[Black "Gomes, Mary Ann"]
[Result "0-1"]
[Annotator "TA"]
[ECO "A37"]
[WhiteElo "1772"]
[BlackElo "2278"]
[PlyCount "88"]
[EventDate "2025.03.03"]
[EventCountry "IND"]
[SourceTitle "playchess.com"]
[Source "ChessBase"]
[SourceQuality "1"]
[TimeControl "5400+30"]

{[%evp 16,88,-5,-21,-16,-43,-43,-43,-40,-39,-20,-22,0,-25,3,-31,12,1,31,42,41,3,6,0,0,0,0,0,14,-20,-16,-32,-31,-62,-29,-41,-12,-21,-30,-56,-47,-118,-45,-139,-114,-258,-235,-258,-260,-254,-231,-231,-195,-181,-162,-218,-175,-205,-213,-332,-294,-367,-355,-350,-312,-884,-863,-29989,-29990,-29990,-29991,-29994,-29995,-29995,-29996]} 1. c4 {[%emt 0:00:56]} c5 {[%emt 0:00:18]} 2. Nc3 {[%emt 0:01:02]} Nc6 {[%emt 0:00:25]} 3. g3 {[%emt 0:00:13]} g6 {[%emt 0:00:09]} 4. Bg2 {[%emt 0:00:03]} Bg7 {[%emt 0:00:06]} 5. Nf3 {[%emt 0:00:03]} d6 {[%emt 0:00:59]} 6. O-O {[%emt 0:00:15]} e5 {[%emt 0:00:06]} 7. d3 {[%emt 0:00:06]} Nge7 {[%emt 0:00:05]} 8. e4 {[%emt 0:00:38]} O-O {[%emt 0:00:27]} 9. Be3 {[%emt 0:00:31]} Nd4 {[%emt 0:00:31] A37: Symmetrical English vs ...g6: 4 Bg2 Bg7 5 Nf3.} 10. Nd5 {[%emt 0:04:32]} Bg4 {[%emt 0:01:08]} 11. Bxd4 {[%emt 0:00:40]} cxd4 {[%emt 0:00:07] Black is slightly better.} 12. Qd2 {[%emt 0:01:45]} h6 $146 {[%emt 0:01:24]} ({Predecessor:} 12... Nxd5 13. cxd5 Qb6 14. h3 Bd7 15. Rfc1 f5 16. Ng5 Bh6 17. h4 f4 18. Bh3 fxg3 19. Bxd7 Rxf2 20. Be6+ Kh8 21. Nf7+ Rxf7 22. Qxh6 Qxb2 {0-1 Karcol,J (1847)-Druska,J (2429) Bratislava Slovan op 2018 (9)}) 13. Ne1 {[%emt 0:01:49]} Be6 {[%emt 0:01:32]} 14. Nc2 {[%emt 0:02:10]} f5 {[%emt 0:02:33]} 15. Rab1 {[%emt 0:09:10]} Qd7 {[%emt 0:04:58]} 16. f4 {[%emt 0:06:04]} Bxd5 {[%emt 0:03:08]} 17. exd5 {[%emt 0:00:26]} Kh7 {[%emt 0:00:45]} 18. Kh1 {[%emt 0:02:04]} Rac8 {[%emt 0:00:31]} 19. b3 {[%emt 0:01:27]} Ng8 {[%emt 0:01:36]} 20. Rbe1 {[%emt 0:03:44]} Rfe8 {[%emt 0:00:47]} 21. Re2 {[%emt 0:11:13]} h5 {[%emt 0:04:33]} 22. fxe5 {[%emt 0:03:25]} dxe5 {[%emt 0:00:30]} 23. Bh3 {[%emt 0:08:32]} Nh6 {[%emt 0:02:57]} 24. Ne1 {[%emt 0:07:44]} Nf7 {[%emt 0:05:45]} 25. Ref2 {[%emt 0:05:21][%cal Rf2f5] [#]} Bh6 {[%emt 0:05:54]} 26. Qd1 {[%emt 0:01:05][%cal Rf2f5] Rxf5! is the strong threat. White is weak on the dark squares} Nd6 {[%emt 0:00:16]} 27. Nc2 {[%emt 0:02:59]} Qg7 {[%emt 0:06:06]} 28. Qa1 {[%emt 0:06:48]} (28. a3 $15) 28... Bg5 {[%emt 0:03:10]} (28... b5 $17 {[%cal Rb5c4] and ...bxc4 should not be overlooked} 29. Re2 Qb7) 29. b4 {[%emt 0:01:05]} (29. a4 $15) 29... b6 {[%emt 0:00:08] Black is more active.} 30. a4 {[%emt 0:01:22] Loses the game.} (30. Re2 $17 {was called for.}) 30... e4 $19 {[%emt 0:04:03]} 31. dxe4 {[%emt 0:02:36]} Rxe4 {[%emt 0:06:19][%cal Od4d3]} 32. Bg2 {[%emt 0:03:27]} Rxc4 {[%emt 0:05:12][%cal Od4d3]} 33. Na3 {[%emt 0:01:45]} Rxb4 {[%emt 0:02:01]} 34. Nb5 {[%emt 0:00:36]} Nxb5 {[%emt 0:03:43]} 35. Bxe4 {[%emt 0:00:07]} Nd6 {[%emt 0:07:17]} (35... fxe4 $2 36. axb5 (36. Rf7 Nc3 $11) 36... Kh6 (36... Rxb5 $2 37. Rf7 $18) 37. Rf7 $18) 36. Bg2 {[%emt 0:03:39]} d3 {[%emt 0:01:54]} 37. Qa3 {[%emt 0:02:25]} (37. a5 $142) 37... Qd4 {[%emt 0:01:58]} 38. Rf3 {[%emt 0:02:00]} d2 {[%emt 0:00:14]} (38... Rxa4 $2 {perishes.} 39. Qxd6 d2 40. Rd1 $18) 39. Rd3 {[%emt 0:00:29]} Qc4 {[%emt 0:02:02] [#]} 40. Rd1 $2 {[%emt 0:00:26]} (40. Qc3) 40... Ne4 {[%emt 0:00:54]} ({And not} 40... Rxa4 41. Qxd6 Qc2 42. Qd7+ Kh6 43. Rf1 $11) 41. Bxe4 {[%emt 0:00:38]} Qxe4+ {[%emt 0:01:03] Black mates.} 42. Rf3 {[%emt 0:00:06]} Rb1 {[%emt 0:00:23]} 43. Rxb1 {[%emt 0:00:45]} Qxb1+ {[%emt 0:00:07]} 44. Kg2 {[%emt 0:00:01]} d1=Q {[%emt 0:00:14] Weighted Error Value: White=0.60/Black=0.16 (very precise)   Mistake:       	White=5     	Black=1      Inaccurate:     	White=7     	Black=5      OK:         	White=7     	Black=8      Best:        	White=1     	Black=3} 0-1

[Event "22nd Indian Women chT 2025"]
[Site "Gujarat"]
[Date "2025.03.05"]
[Round "1.3"]
[White "Mohota, Nisha"]
[Black "Falak Joni Naik"]
[Result "1-0"]
[Annotator "TA"]
[ECO "E16"]
[WhiteElo "2169"]
[BlackElo "1717"]
[PlyCount "135"]
[EventDate "2025.03.03"]
[EventCountry "IND"]
[SourceTitle "playchess.com"]
[Source "ChessBase"]
[SourceQuality "1"]
[TimeControl "5400+30"]

{[%evp 13,135,21,29,33,79,60,57,44,102,96,113,97,134,121,155,158,141,141,145,48,51,43,45,34,104,103,113,117,129,98,137,118,128,106,137,95,90,86,90,90,95,86,109,78,79,82,82,81,83,87,131,77,76,74,103,94,136,108,108,102,137,134,129,109,236,246,222,217,401,370,386,393,370,383,307,198,184,183,848,844,802,882,710,764,699,680,656,606,1152,1490,2295,2137,2230,1903,5624,5033,6074,6357,4627,1985,6170,5720,29970,29968,29981,29982,29984,29985,29985,29983,29982,29983,29983,29984,29977,29978,29978,29979,29990,29991,29991,29991,29993,29993]} 1. d4 {[%emt 0:00:56]} d5 {[%emt 0:00:06]} 2. c4 {[%emt 0:00:29]} e6 {[%emt 0:00:06]} 3. Nf3 {[%emt 0:00:27]} Nf6 {[%emt 0:00:07]} 4. g3 {[%emt 0:00:17]} b6 {[%emt 0:00:18]} 5. cxd5 {[%emt 0:01:17]} exd5 {[%emt 0:00:06]} 6. Bg2 {[%emt 0:01:23]} Bb7 {[%emt 0:00:07]} 7. O-O {[%emt 0:02:03]} Nbd7 {[%emt 0:00:06]} 8. Nc3 {[%emt 0:05:42] E16: Queen's Indian: 4 g3 Bb7 5 Bg2 Bb4+.} a6 {[%emt 0:00:38]} (8... Bb4 $14 {deserves consideration.}) 9. Bf4 $16 {[%emt 0:03:52]} Be7 {[%emt 0:00:34]} 10. Rc1 {[%emt 0:03:35] White is slightly better.} Rc8 {[%emt 0:01:01]} (10... O-O $14) 11. Ne5 {[%emt 0:03:45]} O-O {[%emt 0:03:27]} 12. Bh3 {[%emt 0:01:31]} h6 {[%emt 0:01:28]} 13. Qb3 {[%emt 0:05:39]} c5 $146 {[%emt 0:04:08]} (13... Re8 14. Nxd7 Nxd7 15. Nxd5 Bxd5 16. Qxd5 Nf6 17. Qc4 b5 18. Qd3 Ra8 19. Bxc7 Qd5 {1-0 Abilhoa,G (1671)-Ferraz,D (1307) Curitiba op 2018 (3)}) 14. Nxd7 {[%emt 0:11:15]} Nxd7 {[%emt 0:00:15]} 15. Nxd5 {[%emt 0:00:55] White is much more active.} cxd4 {[%emt 0:16:13]} 16. Bxd7 {[%emt 0:22:41]} ({Better is} 16. Rxc8 $16 Bxc8 17. Qc2) 16... Qxd7 {[%emt 0:00:12]} 17. Nxb6 {[%emt 0:00:29][%csl Oa6,Od4] Black has weak pawns} Qh3 {[%emt 0:02:06][%csl Gb7][%cal Rh3g2] [#]} 18. Nd5 {[%emt 0:01:08] Chess con chili.} (18. f3 {looks sharper.} Rc5 19. Na4 Bd5 20. Qd3) 18... Bxd5 {[%emt 0:03:13]} ({Black should try} 18... Qd7 $14 19. Nb6 Qh3) 19. Qxd5 {[%emt 0:00:14]} Rcd8 {[%emt 0:03:20][%cal Bc8d8,Bd8d5,Bd5h5][%mdl 32]} 20. Qc4 {[%emt 0:01:46]} Bf6 {[%emt 0:15:57]} 21. Qxa6 {[%emt 0:03:38]} Rd5 {[%emt 0:04:18]} 22. Qc6 {[%emt 0:01:39]} Rh5 {[%emt 0:00:08][%csl Gh5][%cal Rh3h2] [#]} 23. Qg2 {[%emt 0:00:27]} Qe6 {[%emt 0:00:11]} 24. Rc2 {[%emt 0:06:40]} Qxa2 {[%emt 0:02:02]} 25. Qc6 {[%emt 0:01:33] Against Rb5} Qe6 {[%emt 0:01:55]} 26. Qxe6 {[%emt 0:01:06]} fxe6 {[%emt 0:00:07]} 27. Bd6 {[%emt 0:03:50]} Rd8 {[%emt 0:01:15]} 28. Rc6 {[%emt 0:01:21]} Rd5 {[%emt 0:01:43]} 29. Bc5 {[%emt 0:03:26]} Re5 {[%emt 0:04:34]} 30. e3 {[%emt 0:02:22]} dxe3 {[%emt 0:09:21]} 31. Bxe3 {[%emt 0:00:24]} Re4 {[%emt 0:00:33][%cal Od8b8]} 32. Rb1 {[%emt 0:02:32]} (32. Rb6 $142) 32... Rb8 {[%emt 0:01:16]} 33. b3 {[%emt 0:01:30]} Kf7 {[%emt 0:01:12]} 34. Bc5 {[%emt 0:00:42]} Rb7 {[%emt 0:05:44]} 35. Kf1 {[%emt 0:01:07]} Re5 {[%emt 0:06:56]} 36. b4 {[%emt 0:02:01]} Rh5 {[%emt 0:00:53]} 37. Kg2 {[%emt 0:00:31]} Be7 {[%emt 0:00:20][%cal Oh5c5] And now ...Rxc5! would win.} 38. Re1 {[%emt 0:02:06]} e5 {[%emt 0:05:15] This move loses the game for Black.} (38... Bxc5 $16 39. Rxc5 (39. bxc5 Rb2 $11) 39... Rb5) 39. g4 $18 {[%emt 0:01:25]} Rg5 {[%emt 0:00:33]} 40. f3 {[%emt 0:01:03]} h5 $2 {[%emt 0:06:54]} (40... Rd7 {keeps fighting.} 41. Re4 Bxc5 42. Rxc5 Rg6 43. Rexe5 (43. Rcxe5 Rb6 $18) 43... Ra6) 41. Bxe7 {[%emt 0:00:49]} Rxe7 {[%emt 0:00:02][%mdl 4096] Endgame KRR-KRR. White is a pawn up.} 42. h4 {[%emt 0:00:17]} Rg6 {[%emt 0:00:01]} 43. Rxg6 {[%emt 0:00:27]} Kxg6 {[%emt 0:00:01] KR-KR. White is a pawn up.} 44. Kg3 {[%emt 0:00:34]} hxg4 {[%emt 0:01:13]} 45. fxg4 {[%emt 0:00:28]} ({Don't do} 45. Kxg4 $6 Rb7 $16) 45... Kf6 $2 {[%emt 0:00:12]} (45... Rb7) 46. Rb1 {[%emt 0:00:28]} Rb7 {[%emt 0:01:58]} 47. b5 {[%emt 0:00:59][%cal Bb4b5,Bb5b6][%mdl 32]} Ke6 {[%emt 0:00:02]} 48. Kf3 {[%emt 0:00:19]} Kd5 {[%emt 0:00:32]} 49. Ke3 {[%emt 0:00:25]} Rb6 {[%emt 0:01:07]} 50. Rb2 {[%emt 0:00:13]} Rb8 {[%emt 0:00:17]} 51. b6 {[%emt 0:00:12] aiming for b7.} Rb7 {[%emt 0:00:01]} 52. h5 {[%emt 0:00:28]} Ke6 {[%emt 0:01:24]} 53. Ke4 {[%emt 0:00:15]} Kd6 {[%emt 0:00:02]} 54. g5 {[%emt 0:00:23]} Ke6 {[%emt 0:00:25]} 55. Rb5 {[%emt 0:00:30]} Kd6 {[%emt 0:00:39]} 56. Kf5 {[%emt 0:00:28]} (56. h6 $142 gxh6 57. gxh6 (57. Rxe5 hxg5 58. Rd5+ Kc6 $11)) 56... Rf7+ {[%emt 0:00:29]} 57. Kg6 {[%emt 0:00:22]} Rb7 {[%emt 0:00:01]} 58. h6 {[%emt 0:00:40] White mates.} gxh6 {[%emt 0:00:05]} 59. gxh6 {[%emt 0:00:02]} e4 {[%emt 0:00:34]} 60. h7 {[%emt 0:00:18]} Rb8 {[%emt 0:00:06]} 61. Kg7 {[%emt 0:01:25]} Rb7+ {[%emt 0:00:08]} 62. Kh6 {[%emt 0:00:15]} Rb8 {[%emt 0:00:04]} 63. Rb3 {[%emt 0:00:29]} Kd5 {[%emt 0:01:23]} 64. b7 {[%emt 0:01:04]} Kc4 {[%emt 0:00:21]} 65. Rg3 {[%emt 0:00:32]} Re8 {[%emt 0:01:42]} 66. Rg8 {[%emt 0:00:20]} Re6+ {[%emt 0:00:08]} 67. Kh5 {[%emt 0:00:43]} e3 {[%emt 0:00:22]} 68. h8=Q {[%emt 0:00:20] Weighted Error Value: White=0.21 (precise) /Black=0.68  Mistake:       	White=2     	Black=6      Inaccurate:     	White=2     	Black=6      OK:         	White=15    	Black=13     Best:        	White=3     	Black=1} 1-0

[Event "22nd Indian Women chT 2025"]
[Site "Gujarat"]
[Date "2025.03.05"]
[Round "1.4"]
[White "Shah Vrushti"]
[Black "Vishwa Vasnawala"]
[Result "0-1"]
[Annotator "NA RC"]
[ECO "C54"]
[WhiteElo "1654"]
[BlackElo "2085"]
[PlyCount "98"]
[EventDate "2025.03.03"]
[EventCountry "IND"]
[SourceTitle "playchess.com"]
[Source "ChessBase"]
[SourceQuality "1"]
[TimeControl "5400+30"]

1. e4 {[%emt 0:00:44]} e5 {[%emt 0:00:21]} 2. Nf3 {[%emt 0:00:20]} Nc6 {[%emt 0:00:07]} 3. Bc4 {[%emt 0:00:49]} Bc5 {[%emt 0:00:19]} 4. c3 {[%emt 0:01:48]} Nf6 {[%emt 0:00:20]} 5. d3 {[%emt 0:00:22]} d6 {[%emt 0:00:48]} 6. Nbd2 {[%emt 0:00:59]} a6 {[%emt 0:00:36]} 7. h3 {[%emt 0:00:49]} O-O {[%emt 0:02:48]} 8. O-O {[%emt 0:01:41]} Ba7 {[%emt 0:01:42]} 9. Re1 {[%emt 0:00:50]} Ne7 {[%emt 0:01:30]} 10. Nf1 {[%emt 0:03:28]} Ng6 {[%emt 0:00:26]} 11. Ng3 {[%emt 0:00:53]} c6 {[%emt 0:01:29]} 12. Bb3 {[%emt 0:00:55]} d5 {[%emt 0:08:43]} 13. exd5 {[%emt 0:04:39]} Nxd5 {[%emt 0:00:50]} 14. Nxe5 {[%emt 0:04:51]} Nxe5 {[%emt 0:03:22]} 15. Rxe5 {[%emt 0:05:51]} Bxf2+ {[%emt 0:01:01]} 16. Kh2 {[%emt 0:03:53]} Qd6 {[%emt 0:12:07]} 17. Qe2 {[%emt 0:13:23]} Bxg3+ {[%emt 0:02:07]} 18. Kxg3 {[%emt 0:00:19]} f6 {[%emt 0:00:32]} 19. Bf4 {[%emt 0:04:44]} fxe5 {[%emt 0:00:16]} 20. Bxe5 {[%emt 0:00:10]} Qg6+ {[%emt 0:01:43]} 21. Kh2 {[%emt 0:00:16]} Bf5 {[%emt 0:03:49]} 22. d4 {[%emt 0:01:00]} b5 {[%emt 0:02:07]} 23. Re1 {[%emt 0:01:40]} Ra7 {[%emt 0:05:47]} 24. Qf3 {[%emt 0:03:12]} Be6 {[%emt 0:05:49]} 25. Qe2 {[%emt 0:01:04]} Nf4 {[%emt 0:04:59]} 26. Bc2 {[%emt 0:04:58]} Nxe2 {[%emt 0:01:13]} 27. Bxg6 {[%emt 0:00:09]} hxg6 {[%emt 0:00:24]} 28. Rxe2 {[%emt 0:00:12]} Bxa2 {[%emt 0:00:15]} 29. Re3 {[%emt 0:03:02]} a5 {[%emt 0:01:47]} 30. Bd6 {[%emt 0:04:28]} Rf2 {[%emt 0:01:43]} 31. Re8+ {[%emt 0:01:28]} Kh7 {[%emt 0:00:01]} 32. Kg3 {[%emt 0:03:29]} Rxb2 {[%emt 0:00:45]} 33. c4 {[%emt 0:05:24]} Bxc4 {[%emt 0:01:03]} 34. Be5 {[%emt 0:01:10]} Bd5 {[%emt 0:00:22]} 35. Bxg7 {[%emt 0:02:10]} Rxg2+ {[%emt 0:01:27]} 36. Kf4 {[%emt 0:00:07]} Rf7+ {[%emt 0:00:20]} 37. Bf6 {[%emt 0:00:26]} Rxf6+ {[%emt 0:00:05]} 38. Ke5 {[%emt 0:00:07]} Re6+ {[%emt 0:00:15]} 39. Rxe6 {[%emt 0:00:15]} Bxe6 {[%emt 0:00:02]} 40. Kxe6 {[%emt 0:00:12]} a4 {[%emt 0:00:02]} 41. Kd6 {[%emt 0:00:08]} a3 {[%emt 0:00:03]} 42. Kxc6 {[%emt 0:00:06]} a2 {[%emt 0:00:03]} 43. d5 {[%emt 0:00:06]} a1=Q {[%emt 0:00:04]} 44. d6 {[%emt 0:00:07]} Qc3+ {[%emt 0:00:08]} 45. Kd5 {[%emt 0:00:09]} Rd2+ {[%emt 0:00:14]} 46. Ke6 {[%emt 0:00:13]} Qc6 {[%emt 0:00:07]} 47. h4 {[%emt 0:00:05]} Qxd6+ {[%emt 0:00:03]} 48. Kf7 {[%emt 0:00:05]} Rf2+ {[%emt 0:00:02]} 49. Ke8 {[%emt 0:00:05]} Rf8# {[%emt 0:00:05]} 0-1